[Event "Titled Tuesday Blitz October 31 Early 2023"]
[White "Kiseleva, Arina"]
[Black "Bilan, Danila"]
[WhiteFideId "4164989"]
[BlackFideId "24161918"]
[WhiteElo "2227"]
[BlackElo "2486"]
[Result "0-1"]
[Round "2"]
[TimeControl "180+1"]
[Date "2023.10.31"]
[WhiteClock "0:00:00"]
[BlackClock "0:00:11"]
[Board "164"]

1. d4 {[%clk 0:03:00]}  d5 {[%clk 0:02:59]} 2. Nf3 {[%clk 0:03:00]}  Nf6 {[%clk 0:02:59]} 3. e3 {[%clk 0:03:00]}  c5 {[%clk 0:02:59]} 4. Bd3 {[%clk 0:02:58]}  Nc6 {[%clk 0:03:00]} 5. b3 {[%clk 0:02:58]}  cxd4 {[%clk 0:02:59]} 6. exd4 {[%clk 0:02:57]}  Bg4 {[%clk 0:03:00]} 7. Be2 {[%clk 0:02:51]}  e6 {[%clk 0:02:50]} 8. h3 {[%clk 0:02:47]}  Bh5 {[%clk 0:02:46]} 9. O-O {[%clk 0:02:45]}  Bd6 {[%clk 0:02:40]} 10. Bb2 {[%clk 0:02:44]}  Qc7 {[%clk 0:02:39]} 11. Nbd2 {[%clk 0:02:40]}  O-O {[%clk 0:02:31]} 12. c4 {[%clk 0:02:39]}  Rad8 {[%clk 0:02:21]} 13. Rc1 {[%clk 0:02:25]}  Bf4 {[%clk 0:01:55]} 14. c5 {[%clk 0:02:19]}  Ne4 {[%clk 0:01:54]} 15. Bc3 {[%clk 0:02:06]}  Bxf3 {[%clk 0:01:44]} 16. Bxf3 {[%clk 0:02:02]}  Nxc3 {[%clk 0:01:41]} 17. Rxc3 {[%clk 0:02:01]}  Nxd4 {[%clk 0:01:41]} 18. b4 {[%clk 0:01:48]}  Qe5 {[%clk 0:01:32]} 19. Re1 {[%clk 0:01:43]}  Qf6 {[%clk 0:01:06]} 20. Nb3 {[%clk 0:01:39]}  Ne2+ {[%clk 0:00:54]} 21. Qxe2 {[%clk 0:01:33]}  Qxc3 {[%clk 0:00:54]} 22. g3 {[%clk 0:01:17]}  Bh6 {[%clk 0:00:51]} 23. b5 {[%clk 0:01:10]}  Rc8 {[%clk 0:00:44]} 24. Bg2 {[%clk 0:01:00]}  g6 {[%clk 0:00:42]} 25. Kh2 {[%clk 0:00:51]}  Rfd8 {[%clk 0:00:36]} 26. f4 {[%clk 0:00:50]}  Bf8 {[%clk 0:00:26]} 27. Rc1 {[%clk 0:00:48]}  Qb4 {[%clk 0:00:23]} 28. Bf1 {[%clk 0:00:48]}  Bxc5 {[%clk 0:00:20]} 29. f5 {[%clk 0:00:32]}  Bg1+ {[%clk 0:00:13]} 30. Kxg1 {[%clk 0:00:31]}  Rxc1 {[%clk 0:00:13]} 31. Nxc1 {[%clk 0:00:31]}  Qc5+ {[%clk 0:00:14]} 32. Qf2 {[%clk 0:00:28]}  Qxc1 {[%clk 0:00:13]} 33. f6 {[%clk 0:00:29]}  Rc8 {[%clk 0:00:12]} 34. Qxa7 {[%clk 0:00:22]}  Qc5+ {[%clk 0:00:12]} 35. Qxc5 {[%clk 0:00:21]}  Rxc5 {[%clk 0:00:13]} 36. a4 {[%clk 0:00:19]}  Rc1 {[%clk 0:00:12]} 37. a5 {[%clk 0:00:18]}  Ra1 {[%clk 0:00:12]} 38. a6 {[%clk 0:00:19]}  bxa6 {[%clk 0:00:12]} 39. bxa6 {[%clk 0:00:20]}  Kf8 {[%clk 0:00:12]} 40. Kf2 {[%clk 0:00:16]}  Ke8 {[%clk 0:00:13]} 41. Bb5+ {[%clk 0:00:15]}  Kd8 {[%clk 0:00:13]} 42. g4 {[%clk 0:00:05]}  g5 {[%clk 0:00:12]} 43. Kg3 {[%clk 0:00:05]}  h6 {[%clk 0:00:13]} 44. Kf3 {[%clk 0:00:05]}  Ra3+ {[%clk 0:00:13]} 45. Kg2 {[%clk 0:00:05]}  d4 {[%clk 0:00:12]} 46. Kf2 {[%clk 0:00:05]}  Rxh3 {[%clk 0:00:12]} 47. Bc6 {[%clk 0:00:05]}  Ra3 {[%clk 0:00:11]} 48. Bb7 {[%clk 0:00:05]}  e5 {[%clk 0:00:11]} 49. Ke2 {[%clk 0:00:05]}  Kc7 {[%clk 0:00:11]} 50. Kd2 {[%clk 0:00:05]}  Kd6 {[%clk 0:00:11]} 51. Ke2 {[%clk 0:00:00]}  Ke6 {[%clk 0:00:11]} 0-1


[Site "https://www.chess.com"]

[Event "Titled Tuesday Blitz October 31 Early 2023"]
[White "Witty_Alien"]
[Black "Shuvalov, Evgenij"]
[BlackFideId "4187237"]
[WhiteElo "2219"]
[BlackElo "2482"]
[Result "1-0"]
[Round "2"]
[TimeControl "180+1"]
[Date "2023.10.31"]
[WhiteClock "0:01:10"]
[BlackClock "0:01:17"]
[Board "167"]

1. e4 {[%clk 0:03:00]}  e6 {[%clk 0:02:59]} 2. d4 {[%clk 0:03:01]}  d5 {[%clk 0:02:59]} 3. exd5 {[%clk 0:02:57]}  exd5 {[%clk 0:02:59]} 4. Nf3 {[%clk 0:02:57]}  Nf6 {[%clk 0:02:58]} 5. c4 {[%clk 0:02:56]}  Bb4+ {[%clk 0:02:50]} 6. Nc3 {[%clk 0:02:57]}  O-O {[%clk 0:02:49]} 7. Be2 {[%clk 0:02:54]}  dxc4 {[%clk 0:02:49]} 8. O-O {[%clk 0:02:53]}  Be6 {[%clk 0:02:42]} 9. Ng5 {[%clk 0:02:49]}  Bf5 {[%clk 0:02:35]} 10. Bxc4 {[%clk 0:02:48]}  c6 {[%clk 0:02:31]} 11. Nxf7 {[%clk 0:02:28]}  Rxf7 {[%clk 0:02:25]} 12. Bxf7+ {[%clk 0:02:28]}  Kh8 {[%clk 0:02:24]} 13. Bg5 {[%clk 0:02:17]}  Nbd7 {[%clk 0:02:22]} 14. Qb3 {[%clk 0:02:09]}  Qb6 {[%clk 0:02:17]} 15. Na4 {[%clk 0:02:03]}  Qa5 {[%clk 0:02:15]} 16. a3 {[%clk 0:02:03]}  Bd6 {[%clk 0:02:10]} 17. Qxb7 {[%clk 0:01:57]}  Rb8 {[%clk 0:02:06]} 18. Qxc6 {[%clk 0:01:57]}  Bxh2+ {[%clk 0:01:52]} 19. Kxh2 {[%clk 0:01:52]}  Be4 {[%clk 0:01:53]} 20. d5 {[%clk 0:01:19]}  Ne5 {[%clk 0:01:31]} 21. Qd6 {[%clk 0:01:13]}  Rd8 {[%clk 0:01:25]} 22. Qxe5 {[%clk 0:01:11]}  Ng4+ {[%clk 0:01:25]} 23. Kg1 {[%clk 0:01:10]}  Nxe5 {[%clk 0:01:26]} 24. Bxd8 {[%clk 0:01:10]}  Nxf7 {[%clk 0:01:17]} 25. Bxa5 {[%clk 0:01:10]} 1-0


[Site "https://www.chess.com"]

[Event "Titled Tuesday Blitz October 31 Early 2023"]
[White "Mirzanurov, Bulat"]
[Black "Martins, Bruno Andre Leite"]
[WhiteFideId "4184521"]
[BlackFideId "1942255"]
[WhiteElo "2187"]
[BlackElo "2475"]
[Result "0-1"]
[Round "2"]
[TimeControl "180+1"]
[Date "2023.10.31"]
[WhiteClock "0:00:00"]
[BlackClock "0:01:24"]
[Board "170"]

1. e4 {[%clk 0:03:00]}  Nc6 {[%clk 0:02:59]} 2. d4 {[%clk 0:03:00]}  e5 {[%clk 0:02:59]} 3. d5 {[%clk 0:02:59]}  Nce7 {[%clk 0:02:59]} 4. c4 {[%clk 0:02:54]}  Ng6 {[%clk 0:02:57]} 5. g3 {[%clk 0:02:52]}  Bc5 {[%clk 0:02:54]} 6. Bg2 {[%clk 0:02:49]}  Nf6 {[%clk 0:02:55]} 7. Ne2 {[%clk 0:02:45]}  d6 {[%clk 0:02:53]} 8. Nbc3 {[%clk 0:02:42]}  h5 {[%clk 0:02:50]} 9. b4 {[%clk 0:02:07]}  Bb6 {[%clk 0:02:48]} 10. h3 {[%clk 0:01:49]}  h4 {[%clk 0:02:39]} 11. g4 {[%clk 0:01:45]}  Bxg4 {[%clk 0:02:39]} 12. hxg4 {[%clk 0:01:37]}  Nxg4 {[%clk 0:02:40]} 13. c5 {[%clk 0:01:31]}  dxc5 {[%clk 0:02:40]} 14. f3 {[%clk 0:01:04]}  cxb4 {[%clk 0:02:19]} 15. fxg4 {[%clk 0:01:01]}  bxc3 {[%clk 0:02:20]} 16. Qa4+ {[%clk 0:00:58]}  Kf8 {[%clk 0:01:57]} 17. Nxc3 {[%clk 0:00:49]}  h3 {[%clk 0:01:44]} 18. Bf3 {[%clk 0:00:17]}  Qh4+ {[%clk 0:01:42]} 19. Kd1 {[%clk 0:00:17]}  Qf2 {[%clk 0:01:34]} 20. Qa3+ {[%clk 0:00:00]}  Bc5 {[%clk 0:01:24]} 0-1


[Site "https://www.chess.com"]

[Event "Titled Tuesday Blitz October 31 Early 2023"]
[White "Rangel, Daniel"]
[Black "Rodriguez Dominguez, Melissa"]
[WhiteFideId "2124475"]
[BlackFideId "3517560"]
[WhiteElo "2474"]
[BlackElo "2183"]
[Result "0-1"]
[Round "2"]
[TimeControl "180+1"]
[Date "2023.10.31"]
[WhiteClock "0:00:13"]
[BlackClock "0:00:14"]
[Board "171"]

1. d4 {[%clk 0:02:59]}  d5 {[%clk 0:02:58]} 2. c4 {[%clk 0:02:57]}  c6 {[%clk 0:02:58]} 3. Nc3 {[%clk 0:02:48]}  Nf6 {[%clk 0:02:58]} 4. cxd5 {[%clk 0:02:42]}  cxd5 {[%clk 0:02:57]} 5. Bf4 {[%clk 0:02:42]}  Nc6 {[%clk 0:02:54]} 6. e3 {[%clk 0:02:43]}  a6 {[%clk 0:02:54]} 7. Nf3 {[%clk 0:02:42]}  e6 {[%clk 0:02:41]} 8. Bd3 {[%clk 0:02:38]}  Bd6 {[%clk 0:02:40]} 9. Ne5 {[%clk 0:02:35]}  O-O {[%clk 0:02:39]} 10. g4 {[%clk 0:02:33]}  Bxe5 {[%clk 0:02:31]} 11. dxe5 {[%clk 0:02:24]}  Nd7 {[%clk 0:02:29]} 12. Qb1 {[%clk 0:01:46]}  g6 {[%clk 0:02:22]} 13. Bh6 {[%clk 0:01:38]}  Re8 {[%clk 0:02:21]} 14. f4 {[%clk 0:01:38]}  Qh4+ {[%clk 0:02:15]} 15. Ke2 {[%clk 0:01:34]}  Qxh6 {[%clk 0:02:14]} 16. h4 {[%clk 0:01:34]}  Ndxe5 {[%clk 0:01:48]} 17. fxe5 {[%clk 0:01:25]}  Nxe5 {[%clk 0:01:49]} 18. Bc2 {[%clk 0:01:18]}  Nxg4 {[%clk 0:01:47]} 19. Qg1 {[%clk 0:01:16]}  Qh5 {[%clk 0:01:29]} 20. Kd2 {[%clk 0:01:11]}  f5 {[%clk 0:01:21]} 21. Rf1 {[%clk 0:01:04]}  b5 {[%clk 0:01:18]} 22. Bd1 {[%clk 0:00:55]}  b4 {[%clk 0:01:11]} 23. Ne2 {[%clk 0:00:55]}  e5 {[%clk 0:01:10]} 24. Ng3 {[%clk 0:00:53]}  Qh6 {[%clk 0:01:05]} 25. h5 {[%clk 0:00:53]}  d4 {[%clk 0:00:50]} 26. Bxg4 {[%clk 0:00:45]}  Qxe3+ {[%clk 0:00:30]} 27. Qxe3 {[%clk 0:00:39]}  dxe3+ {[%clk 0:00:31]} 28. Kxe3 {[%clk 0:00:39]}  fxg4 {[%clk 0:00:31]} 29. hxg6 {[%clk 0:00:39]}  hxg6 {[%clk 0:00:31]} 30. Ne4 {[%clk 0:00:37]}  Bf5 {[%clk 0:00:25]} 31. Nf6+ {[%clk 0:00:34]}  Kg7 {[%clk 0:00:25]} 32. Nxe8+ {[%clk 0:00:30]}  Rxe8 {[%clk 0:00:26]} 33. Rc1 {[%clk 0:00:31]}  Rd8 {[%clk 0:00:24]} 34. Rc7+ {[%clk 0:00:30]}  Kf6 {[%clk 0:00:24]} 35. Rc6+ {[%clk 0:00:28]}  Kg5 {[%clk 0:00:23]} 36. Rxa6 {[%clk 0:00:28]}  Rd3+ {[%clk 0:00:23]} 37. Ke2 {[%clk 0:00:28]}  Rg3 {[%clk 0:00:23]} 38. Kf2 {[%clk 0:00:21]}  Rf3+ {[%clk 0:00:21]} 39. Ke2 {[%clk 0:00:22]}  Bd3+ {[%clk 0:00:21]} 40. Kd2 {[%clk 0:00:21]}  Bxa6 {[%clk 0:00:22]} 41. Re1 {[%clk 0:00:20]}  Kf4 {[%clk 0:00:21]} 42. Rc1 {[%clk 0:00:20]}  e4 {[%clk 0:00:20]} 43. Rc6 {[%clk 0:00:19]}  Bd3 {[%clk 0:00:20]} 44. Rf6+ {[%clk 0:00:18]}  Kg3 {[%clk 0:00:20]} 45. Rxg6 {[%clk 0:00:18]}  Bf1 {[%clk 0:00:16]} 46. a3 {[%clk 0:00:17]}  Rd3+ {[%clk 0:00:14]} 47. Ke1 {[%clk 0:00:17]}  Bg2 {[%clk 0:00:14]} 48. axb4 {[%clk 0:00:17]}  Bf3 {[%clk 0:00:14]} 49. Rd6 {[%clk 0:00:14]}  Rxd6 {[%clk 0:00:14]} 50. Kf1 {[%clk 0:00:13]}  Rd1# {[%clk 0:00:14]} 0-1


[Site "https://www.chess.com"]

[Event "Titled Tuesday Blitz October 31 Early 2023"]
[White "Kunin, Vitaly"]
[Black "Floresvillar Gonzalez, Luis Migu"]
[WhiteFideId "4128737"]
[BlackFideId "5100542"]
[WhiteElo "2472"]
[BlackElo "2181"]
[Result "1-0"]
[Round "2"]
[TimeControl "180+1"]
[Date "2023.10.31"]
[WhiteClock "0:00:51"]
[BlackClock "0:01:14"]
[Board "172"]

1. e4 {[%clk 0:02:53]}  c6 {[%clk 0:03:00]} 2. Nf3 {[%clk 0:02:51]}  d5 {[%clk 0:03:00]} 3. exd5 {[%clk 0:02:50]}  cxd5 {[%clk 0:02:59]} 4. d4 {[%clk 0:02:50]}  Bg4 {[%clk 0:02:57]} 5. h3 {[%clk 0:02:47]}  Bxf3 {[%clk 0:02:57]} 6. Bb5+ {[%clk 0:02:47]}  Nc6 {[%clk 0:02:54]} 7. Qxf3 {[%clk 0:02:43]}  Qa5+ {[%clk 0:02:45]} 8. Nc3 {[%clk 0:02:40]}  Nf6 {[%clk 0:02:40]} 9. Bd2 {[%clk 0:02:38]}  e6 {[%clk 0:02:25]} 10. Nxd5 {[%clk 0:02:34]}  Qxd2+ {[%clk 0:02:12]} 11. Kxd2 {[%clk 0:02:32]}  Nxd5 {[%clk 0:02:13]} 12. Bxc6+ {[%clk 0:02:29]}  bxc6 {[%clk 0:02:12]} 13. c4 {[%clk 0:02:30]}  Bb4+ {[%clk 0:02:07]} 14. Kc2 {[%clk 0:02:25]}  Ne7 {[%clk 0:02:07]} 15. Qb3 {[%clk 0:01:07]}  Bd6 {[%clk 0:01:55]} 16. c5 {[%clk 0:01:02]}  Rb8 {[%clk 0:01:49]} 17. cxd6 {[%clk 0:01:00]}  Rxb3 {[%clk 0:01:47]} 18. axb3 {[%clk 0:01:00]}  Nd5 {[%clk 0:01:42]} 19. Rxa7 {[%clk 0:01:00]}  O-O {[%clk 0:01:43]} 20. Rha1 {[%clk 0:00:57]}  g6 {[%clk 0:01:19]} 21. Ra8 {[%clk 0:00:56]}  Nb6 {[%clk 0:01:18]} 22. Rxf8+ {[%clk 0:00:55]}  Kxf8 {[%clk 0:01:17]} 23. Ra6 {[%clk 0:00:54]}  Nd7 {[%clk 0:01:14]} 24. Ra8+ {[%clk 0:00:51]} 1-0


[Site "https://www.chess.com"]

[Event "Titled Tuesday Blitz October 31 Early 2023"]
[White "Joshi, Pankaj"]
[Black "kuanysh1981"]
[WhiteFideId "5006210"]
[WhiteElo "2179"]
[BlackElo "2472"]
[Result "1/2-1/2"]
[Round "2"]
[TimeControl "180+1"]
[Date "2023.10.31"]
[WhiteClock "0:00:09"]
[BlackClock "0:00:45"]
[Board "173"]

1. e4 {[%clk 0:03:00]}  e5 {[%clk 0:02:59]} 2. Nf3 {[%clk 0:03:00]}  Nc6 {[%clk 0:02:59]} 3. Bc4 {[%clk 0:03:00]}  Be7 {[%clk 0:02:56]} 4. O-O {[%clk 0:02:58]}  Nf6 {[%clk 0:02:56]} 5. d3 {[%clk 0:02:59]}  O-O {[%clk 0:02:56]} 6. a3 {[%clk 0:02:59]}  d6 {[%clk 0:02:57]} 7. Nbd2 {[%clk 0:02:57]}  h6 {[%clk 0:02:51]} 8. Re1 {[%clk 0:02:56]}  Be6 {[%clk 0:02:50]} 9. c3 {[%clk 0:02:55]}  Qd7 {[%clk 0:02:50]} 10. Bxe6 {[%clk 0:02:52]}  fxe6 {[%clk 0:02:47]} 11. h3 {[%clk 0:02:41]}  Nh5 {[%clk 0:02:47]} 12. Kh2 {[%clk 0:02:41]}  Nf4 {[%clk 0:02:44]} 13. d4 {[%clk 0:02:38]}  exd4 {[%clk 0:02:41]} 14. cxd4 {[%clk 0:02:36]}  e5 {[%clk 0:02:38]} 15. dxe5 {[%clk 0:02:18]}  Nxe5 {[%clk 0:02:38]} 16. Nxe5 {[%clk 0:02:14]}  dxe5 {[%clk 0:02:39]} 17. Nf3 {[%clk 0:02:09]}  Qe6 {[%clk 0:02:39]} 18. Bxf4 {[%clk 0:02:07]}  Rxf4 {[%clk 0:02:39]} 19. Qd5 {[%clk 0:02:04]}  Qxd5 {[%clk 0:02:38]} 20. exd5 {[%clk 0:02:04]}  Bd6 {[%clk 0:02:39]} 21. Kg1 {[%clk 0:01:54]}  Raf8 {[%clk 0:02:33]} 22. Re2 {[%clk 0:01:46]}  Bc5 {[%clk 0:02:25]} 23. Rxe5 {[%clk 0:01:37]}  Rc4 {[%clk 0:02:19]} 24. Rae1 {[%clk 0:01:33]}  Rc2 {[%clk 0:02:07]} 25. R5e2 {[%clk 0:01:32]}  Rc4 {[%clk 0:02:07]} 26. Nd2 {[%clk 0:01:28]}  Rd4 {[%clk 0:02:05]} 27. Nb3 {[%clk 0:01:18]}  Rxd5 {[%clk 0:02:05]} 28. Nxc5 {[%clk 0:01:12]}  Rxc5 {[%clk 0:02:06]} 29. Rd1 {[%clk 0:01:11]}  Rf7 {[%clk 0:02:05]} 30. g3 {[%clk 0:01:06]}  a5 {[%clk 0:01:56]} 31. Kg2 {[%clk 0:01:04]}  Rb5 {[%clk 0:01:53]} 32. Rd4 {[%clk 0:01:00]}  Kh7 {[%clk 0:01:51]} 33. h4 {[%clk 0:01:00]}  b6 {[%clk 0:01:46]} 34. Red2 {[%clk 0:00:56]}  Rb3 {[%clk 0:01:45]} 35. Rd7 {[%clk 0:00:48]}  Rxd7 {[%clk 0:01:44]} 36. Rxd7 {[%clk 0:00:49]}  Rxb2 {[%clk 0:01:45]} 37. Rxc7 {[%clk 0:00:50]}  b5 {[%clk 0:01:40]} 38. Ra7 {[%clk 0:00:32]}  a4 {[%clk 0:01:39]} 39. Rb7 {[%clk 0:00:31]}  h5 {[%clk 0:01:36]} 40. Kf3 {[%clk 0:00:31]}  Rb3+ {[%clk 0:01:36]} 41. Kf4 {[%clk 0:00:30]}  Kh6 {[%clk 0:01:35]} 42. f3 {[%clk 0:00:28]}  Rxa3 {[%clk 0:01:32]} 43. Rxb5 {[%clk 0:00:28]}  Rb3 {[%clk 0:01:32]} 44. Ra5 {[%clk 0:00:25]}  Rb4+ {[%clk 0:01:31]} 45. Ke3 {[%clk 0:00:24]}  Kg6 {[%clk 0:01:27]} 46. Rg5+ {[%clk 0:00:20]}  Kh6 {[%clk 0:01:24]} 47. Ra5 {[%clk 0:00:21]}  g6 {[%clk 0:01:24]} 48. Ra7 {[%clk 0:00:20]}  Rb3+ {[%clk 0:01:22]} 49. Kf4 {[%clk 0:00:19]}  a3 {[%clk 0:01:23]} 50. Ke4 {[%clk 0:00:19]}  Rc3 {[%clk 0:01:13]} 51. g4 {[%clk 0:00:19]}  hxg4 {[%clk 0:01:05]} 52. fxg4 {[%clk 0:00:19]}  Rh3 {[%clk 0:01:03]} 53. Kf4 {[%clk 0:00:07]}  g5+ {[%clk 0:00:48]} 54. hxg5+ {[%clk 0:00:07]}  Kg6 {[%clk 0:00:48]} 55. Ra6+ {[%clk 0:00:07]}  Kg7 {[%clk 0:00:48]} 56. Kf5 {[%clk 0:00:08]}  Rf3+ {[%clk 0:00:48]} 57. Ke4 {[%clk 0:00:09]}  Rg3 {[%clk 0:00:47]} 58. Kf4 {[%clk 0:00:09]}  Rb3 {[%clk 0:00:47]} 59. Kf5 {[%clk 0:00:10]}  Rf3+ {[%clk 0:00:44]} 60. Ke4 {[%clk 0:00:10]}  Rh3 {[%clk 0:00:45]} 61. Kf5 {[%clk 0:00:09]}  Rf3+ {[%clk 0:00:45]} 1/2-1/2


[Site "https://www.chess.com"]

[Event "Titled Tuesday Blitz October 31 Early 2023"]
[White "Tikhonov, Viacheslav"]
[Black "vaniavindy"]
[WhiteFideId "44196407"]
[WhiteElo "2471"]
[BlackElo "2174"]
[Result "1-0"]
[Round "2"]
[TimeControl "180+1"]
[Date "2023.10.31"]
[WhiteClock "0:00:52"]
[BlackClock "0:00:00"]
[Board "174"]

1. e4 {[%clk 0:03:00]}  c6 {[%clk 0:02:59]} 2. d4 {[%clk 0:03:00]}  d5 {[%clk 0:02:59]} 3. exd5 {[%clk 0:03:01]}  cxd5 {[%clk 0:02:59]} 4. Bd3 {[%clk 0:03:01]}  Nc6 {[%clk 0:02:58]} 5. c3 {[%clk 0:03:01]}  Nf6 {[%clk 0:02:21]} 6. h3 {[%clk 0:03:00]}  h6 {[%clk 0:02:12]} 7. Nf3 {[%clk 0:02:58]}  g6 {[%clk 0:02:00]} 8. O-O {[%clk 0:02:57]}  Bg7 {[%clk 0:01:59]} 9. Bf4 {[%clk 0:02:57]}  O-O {[%clk 0:01:58]} 10. Re1 {[%clk 0:02:57]}  a6 {[%clk 0:01:44]} 11. a4 {[%clk 0:02:57]}  Be6 {[%clk 0:01:42]} 12. Qd2 {[%clk 0:02:41]}  Kh7 {[%clk 0:01:32]} 13. Bxg6+ {[%clk 0:02:36]}  fxg6 {[%clk 0:01:22]} 14. Rxe6 {[%clk 0:02:35]}  Ne4 {[%clk 0:01:20]} 15. Qe3 {[%clk 0:02:28]}  Rf6 {[%clk 0:01:10]} 16. Rxf6 {[%clk 0:02:24]}  exf6 {[%clk 0:01:11]} 17. Nbd2 {[%clk 0:02:20]}  f5 {[%clk 0:01:11]} 18. Ne5 {[%clk 0:02:17]}  g5 {[%clk 0:01:03]} 19. Nxc6 {[%clk 0:01:21]}  bxc6 {[%clk 0:00:58]} 20. Be5 {[%clk 0:01:15]}  Bxe5 {[%clk 0:00:19]} 21. dxe5 {[%clk 0:01:16]}  Qe7 {[%clk 0:00:18]} 22. Nxe4 {[%clk 0:01:12]}  dxe4 {[%clk 0:00:18]} 23. Rd1 {[%clk 0:01:06]}  Qxe5 {[%clk 0:00:17]} 24. Rd7+ {[%clk 0:01:06]}  Kg6 {[%clk 0:00:18]} 25. Qb6 {[%clk 0:01:01]}  Qe6 {[%clk 0:00:15]} 26. Qc7 {[%clk 0:00:52]}  Kh5 {[%clk 0:00:00]} 27. Rd6 {[%clk 0:00:52]} 1-0


[Site "https://www.chess.com"]

[Event "Titled Tuesday Blitz October 31 Early 2023"]
[White "knightinshiningarmour16"]
[Black "Devaev, Alexander"]
[BlackFideId "4169395"]
[WhiteElo "2164"]
[BlackElo "2468"]
[Result "1-0"]
[Round "2"]
[TimeControl "180+1"]
[Date "2023.10.31"]
[WhiteClock "0:00:19"]
[BlackClock "0:00:00"]
[Board "176"]

1. d4 {[%clk 0:03:00]}  Nf6 {[%clk 0:02:59]} 2. c4 {[%clk 0:02:56]}  e6 {[%clk 0:02:59]} 3. Nc3 {[%clk 0:02:56]}  Bb4 {[%clk 0:03:00]} 4. Nf3 {[%clk 0:02:55]}  c5 {[%clk 0:03:00]} 5. Qc2 {[%clk 0:02:52]}  Nc6 {[%clk 0:02:53]} 6. dxc5 {[%clk 0:02:50]}  Bxc5 {[%clk 0:02:45]} 7. Bg5 {[%clk 0:02:49]}  O-O {[%clk 0:02:15]} 8. e3 {[%clk 0:02:48]}  Bb4 {[%clk 0:02:08]} 9. Bd3 {[%clk 0:02:47]}  h6 {[%clk 0:02:07]} 10. Bh4 {[%clk 0:02:47]}  Be7 {[%clk 0:02:01]} 11. a3 {[%clk 0:02:36]}  b6 {[%clk 0:01:57]} 12. O-O {[%clk 0:02:35]}  Bb7 {[%clk 0:01:58]} 13. Qe2 {[%clk 0:02:24]}  Rc8 {[%clk 0:01:57]} 14. Bc2 {[%clk 0:02:23]}  Na5 {[%clk 0:01:43]} 15. Bd3 {[%clk 0:02:11]}  Ba6 {[%clk 0:01:21]} 16. b4 {[%clk 0:01:58]}  Nxc4 {[%clk 0:00:54]} 17. b5 {[%clk 0:01:54]}  Na5 {[%clk 0:00:52]} 18. bxa6 {[%clk 0:01:18]}  Rxc3 {[%clk 0:00:51]} 19. Bb5 {[%clk 0:01:18]}  Nd5 {[%clk 0:00:22]} 20. Bg3 {[%clk 0:01:06]}  Rxa3 {[%clk 0:00:21]} 21. Rxa3 {[%clk 0:00:57]}  Bxa3 {[%clk 0:00:22]} 22. Qd3 {[%clk 0:00:51]}  Be7 {[%clk 0:00:13]} 23. Rd1 {[%clk 0:00:44]}  Nb4 {[%clk 0:00:13]} 24. Qxd7 {[%clk 0:00:42]}  Bf6 {[%clk 0:00:07]} 25. h3 {[%clk 0:00:37]}  Qc8 {[%clk 0:00:05]} 26. Qxa7 {[%clk 0:00:32]}  Qc2 {[%clk 0:00:05]} 27. Rf1 {[%clk 0:00:28]}  Qc5 {[%clk 0:00:04]} 28. Be2 {[%clk 0:00:24]}  Nb3 {[%clk 0:00:03]} 29. Rd1 {[%clk 0:00:22]}  Nc1 {[%clk 0:00:03]} 30. Bf1 {[%clk 0:00:21]}  Nca2 {[%clk 0:00:02]} 31. Bd6 {[%clk 0:00:20]}  Qc2 {[%clk 0:00:01]} 32. Bxf8 {[%clk 0:00:20]}  Qxd1 {[%clk 0:00:01]} 33. Qb8 {[%clk 0:00:20]}  Kh7 {[%clk 0:00:00]} 34. a7 {[%clk 0:00:19]} 1-0


[Site "https://www.chess.com"]

[Event "Titled Tuesday Blitz October 31 Early 2023"]
[White "LouieKov2022"]
[Black "Fernandez Hernandez, Gerardo"]
[BlackFideId "2207400"]
[WhiteElo "2467"]
[BlackElo "2157"]
[Result "1-0"]
[Round "2"]
[TimeControl "180+1"]
[Date "2023.10.31"]
[WhiteClock "0:01:19"]
[BlackClock "0:00:00"]
[Board "177"]

1. e4 {[%clk 0:02:59]}  e6 {[%clk 0:03:00]} 2. d4 {[%clk 0:02:59]}  d5 {[%clk 0:03:00]} 3. Nd2 {[%clk 0:03:00]}  h6 {[%clk 0:02:59]} 4. e5 {[%clk 0:02:52]}  c5 {[%clk 0:02:53]} 5. c3 {[%clk 0:02:52]}  Nc6 {[%clk 0:02:44]} 6. Ndf3 {[%clk 0:02:50]}  Nge7 {[%clk 0:02:38]} 7. Bd3 {[%clk 0:02:44]}  Qb6 {[%clk 0:02:31]} 8. Ne2 {[%clk 0:02:42]}  Bd7 {[%clk 0:02:28]} 9. h4 {[%clk 0:02:41]}  cxd4 {[%clk 0:02:20]} 10. cxd4 {[%clk 0:02:41]}  Nb4 {[%clk 0:02:17]} 11. Bb1 {[%clk 0:02:41]}  Bb5 {[%clk 0:01:55]} 12. Nc3 {[%clk 0:02:38]}  Nf5 {[%clk 0:01:31]} 13. a3 {[%clk 0:02:27]}  Nc6 {[%clk 0:01:17]} 14. Bxf5 {[%clk 0:02:22]}  exf5 {[%clk 0:01:17]} 15. Nxd5 {[%clk 0:02:22]}  Qa5+ {[%clk 0:00:53]} 16. b4 {[%clk 0:02:18]}  Nxb4 {[%clk 0:00:44]} 17. axb4 {[%clk 0:02:05]}  Qxa1 {[%clk 0:00:39]} 18. Nc7+ {[%clk 0:02:03]}  Kd7 {[%clk 0:00:38]} 19. Nxb5 {[%clk 0:02:04]}  Bxb4+ {[%clk 0:00:32]} 20. Bd2 {[%clk 0:02:03]}  Qa5 {[%clk 0:00:21]} 21. Nd6 {[%clk 0:01:57]}  Bxd2+ {[%clk 0:00:10]} 22. Nxd2 {[%clk 0:01:55]}  f6 {[%clk 0:00:09]} 23. O-O {[%clk 0:01:47]}  fxe5 {[%clk 0:00:09]} 24. N2c4 {[%clk 0:01:48]}  Qd5 {[%clk 0:00:06]} 25. dxe5 {[%clk 0:01:46]}  Qxd1 {[%clk 0:00:05]} 26. Rxd1 {[%clk 0:01:47]}  Ke6 {[%clk 0:00:05]} 27. Nxb7 {[%clk 0:01:44]}  Rac8 {[%clk 0:00:03]} 28. Rd6+ {[%clk 0:01:40]}  Ke7 {[%clk 0:00:02]} 29. Nca5 {[%clk 0:01:38]}  Rc7 {[%clk 0:00:01]} 30. Nc6+ {[%clk 0:01:37]}  Kf7 {[%clk 0:00:00]} 31. Nbd8+ {[%clk 0:01:19]} 1-0


[Site "https://www.chess.com"]